fUST/lending_fUST_20250424
["ID","MTS","AMOUNT","RATE_DAILY","PERIOD"]
[358791908,1745430651803,-7964.52328762,0.00019452,2]
[358791927,1745431034656,-375.0,0.00027,120]
[358792052,1745431681458,-200.0,0.00018161,2]
[358792322,1745431840981,-3892.8479968,0.00018161,2]
[358792323,1745431840991,-152.68707532,0.00018978,2]
[358792324,1745431841001,-900.0,0.00019098,2]
[358792325,1745431841011,-296.60876913,0.00019099,2]
[358792326,1745431841020,-238.50900153,0.00019099,2]
[358792327,1745431841047,-12.88866557,0.00019099,2]
[358792338,1745431843692,-248.6023329,0.00019099,2]
[358792340,1745431843702,-411.43150359,0.00019099,2]
[358792341,1745431843712,-300.0,0.00019099,2]
[358792342,1745431843726,-2820.99273458,0.000191,2]
[358792345,1745431844035,-2885.90225228,0.000191,2]
[358792356,1745432159708,1571.76603952,0.00018,2]
[358792358,1745432359399,-227.489848,0.00018451,2]
[358792377,1745432743399,-272.510152,0.00018453,2]
[358792433,1745433032215,-463.6978159,0.00018453,2]
[358792434,1745433032226,-365.91967598,0.000189,2]
[358792435,1745433032235,-544.75691787,0.00019078,2]
[358792436,1745433032259,-1229.4672806,0.00019078,2]
[358792437,1745433032268,-49.72528991,0.000191,2]
[358792441,1745433037663,-1683.56759743,0.000191,2]
[358792442,1745433037673,-300.0,0.00019174,2]
[358792443,1745433037683,-900.0,0.00019174,2]
[358792444,1745433037693,-300.0,0.00019174,2]
[358792446,1745433037702,-542.2,0.00019174,2]
[358792447,1745433037712,-500.0,0.00019174,2]
[358792448,1745433037722,-500.0,0.00019174,2]
[358792449,1745433037731,-500.0,0.00019174,2]
[358792450,1745433037741,-500.0,0.00019174,2]
[358792451,1745433037750,-500.0,0.00019174,2]
[358792452,1745433037759,-500.0,0.00019174,2]
[358792453,1745433037769,-500.0,0.00019174,2]
[358792454,1745433037778,-500.0,0.00019174,2]
[358792456,1745433037788,-500.0,0.00019174,2]
[358792457,1745433037798,-355.34789239,0.00019174,2]
[358792458,1745433037808,-500.0,0.00019174,2]
[358792459,1745433037819,-500.0,0.00019174,2]
[358792460,1745433037828,-526.358321,0.00019174,2]
[358792461,1745433037837,-500.0,0.00019174,2]
[358792462,1745433037846,-500.0,0.00019174,2]
[358792463,1745433037855,-500.0,0.00019174,2]
[358792464,1745433037865,-500.0,0.00019174,2]
[358792465,1745433037875,-500.0,0.00019174,2]
[358792466,1745433037884,-500.0,0.00019174,2]
[358792467,1745433037894,-500.0,0.00019174,2]
[358792468,1745433037904,-500.0,0.00019174,2]
[358792469,1745433037914,-500.0,0.00019174,2]
[358792470,1745433037923,-500.0,0.00019174,2]
[358792471,1745433037933,-500.0,0.00019174,2]
[358792472,1745433037942,-500.0,0.00019174,2]
[358792473,1745433037951,-429.33752866,0.00019174,2]
[358792474,1745433037961,-500.0,0.00019174,2]
[358792475,1745433037971,-500.0,0.00019174,2]
[358792476,1745433037981,-500.0,0.00019174,2]
[358792477,1745433037990,-500.0,0.00019174,2]
[358792478,1745433038000,-500.0,0.00019174,2]
[358792479,1745433038009,-500.0,0.00019174,2]
[358792480,1745433038019,-500.0,0.00019174,2]
[358792481,1745433038028,-500.0,0.00019174,2]
[358792482,1745433038038,-500.0,0.00019174,2]
[358792483,1745433038048,-500.0,0.00019174,2]
[358792484,1745433038058,-16676.89834144,0.00019177,2]
[358792485,1745433038068,-151.0,0.00019178,2]
[358792486,1745433038078,-151.0,0.00019178,2]
[358792487,1745433038088,-151.0,0.00019178,2]
[358792488,1745433038098,-151.0,0.00019178,2]
[358792489,1745433038107,-151.0,0.00019178,2]
[358792490,1745433038117,-151.89566953,0.00019178,2]
[358792491,1745433038128,-151.0,0.00019178,2]
[358792492,1745433038139,-151.0,0.00019178,2]
[358792493,1745433038148,-151.0,0.00019178,2]
[358792494,1745433038157,-500.0,0.00019178,2]
[358792495,1745433038167,-151.0,0.00019452,2]
[358792496,1745433038176,-151.0,0.00019452,2]
[358792497,1745433038186,-156.38877461,0.00019452,2]
[358792498,1745433038196,-151.0,0.00019452,2]
[358792499,1745433038206,-151.0,0.00019452,2]
[358792500,1745433038216,-151.0,0.00019452,2]
[358792501,1745433038225,-151.0,0.00019452,2]
[358792502,1745433038235,-151.0,0.00019452,2]
[358792503,1745433038245,-151.0,0.00019452,2]
[358792504,1745433038255,-151.0,0.00019452,2]
[358792505,1745433038264,-153.13690097,0.00019452,2]
[358792506,1745433038274,-151.0,0.00019452,2]
[358792507,1745433038283,-151.0,0.00019452,2]
[358792508,1745433038293,-151.0,0.00019452,2]
[358792509,1745433038303,-500.0,0.00019452,2]
[358792510,1745433038312,-151.0,0.00019473,2]
[358792511,1745433038322,-151.0,0.00019473,2]
[358792512,1745433038332,-151.0,0.00019473,2]
[358792513,1745433038342,-500.0,0.00019473,2]
[358792514,1745433038352,-151.0,0.00019473,2]
[358792515,1745433038361,-151.0,0.00019473,2]
[358792516,1745433038371,-151.0,0.00019473,2]
[358792517,1745433038380,-151.0,0.00019473,2]
[358792518,1745433038391,-151.0,0.00019473,2]
[358792519,1745433038401,-500.0,0.00019473,2]
[358792520,1745433038410,-167.03275407,0.00019478,2]
[358792521,1745433038448,-332.96724593,0.00019478,2]
[358792522,1745433038458,-410.63094418,0.00019503,2]
[358792523,1745433038471,-222.38790854,0.00019503,2]
[358792524,1745433038483,-151.0,0.00019527,2]
[358792525,1745433038492,-151.0,0.00019527,2]
[358792526,1745433038501,-151.0,0.00019527,2]
[358792527,1745433038511,-151.0,0.00019527,2]
[358792528,1745433038521,-151.0,0.00019527,2]
[358792529,1745433038531,-151.0,0.00019527,2]
[358792530,1745433038540,-151.0,0.00019527,2]
[358792531,1745433038553,-500.0,0.00019556,2]
[358792532,1745433038563,-500.0,0.00019556,2]
[358792533,1745433038572,-151.0,0.00019563,2]
[358792534,1745433038582,-151.0,0.00019563,2]
[358792535,1745433038591,-207.4,0.00019563,2]
[358792536,1745433038600,-22532.62977777,0.00019575,2]
[358792537,1745433038611,-151.0,0.000197,2]
[358792538,1745433038621,-151.0,0.000197,2]
[358792539,1745433038631,-308.64854975,0.0001971,2]
[358792540,1745433038640,-151.0,0.00019724,2]
[358792541,1745433038650,-151.0,0.00019724,2]
[358792542,1745433038659,-151.0,0.00019724,2]
[358792543,1745433038669,-151.0,0.00019724,2]
[358792544,1745433038678,-205.349535,0.00019724,2]
[358792545,1745433038688,-205.349535,0.00019724,2]
[358792546,1745433038697,-205.349535,0.00019724,2]
[358792547,1745433038707,-205.349535,0.00019724,2]
[358792548,1745433038717,-160.0,0.00019724,3]
[358792549,1745433038726,-160.0,0.00019724,3]
[358792550,1745433038735,-12573.79847128,0.00019724,3]
[358792551,1745433038745,-177.46985806,0.00019725,2]
[358792552,1745433038754,-455.14609037,0.00019725,2]
[358792553,1745433038764,-168.60226325,0.00019725,2]
[358792554,1745433038774,-151.0,0.00019725,2]
[358792555,1745433038784,-151.0,0.00019726,2]
[358792556,1745433038794,-198.0,0.00019726,2]
[358792557,1745433038804,-151.0,0.00019726,2]
[358792558,1745433038813,-151.0,0.00019726,2]
[358792559,1745433038823,-151.0,0.00019726,2]
[358792560,1745433038832,-151.0,0.00019726,2]
[358792561,1745433038842,-151.0,0.00019726,2]
[358792562,1745433038853,-151.0,0.00019726,2]
[358792563,1745433038862,-151.0,0.00019726,2]
[358792564,1745433038872,-151.0,0.00019726,2]
[358792565,1745433038882,-205.349535,0.00019726,2]
[358792566,1745433038891,-205.349535,0.00019726,2]
[358792567,1745433038901,-205.349535,0.00019726,2]
[358792568,1745433038910,-205.349535,0.00019726,2]
[358792569,1745433038920,-151.0,0.00019726,2]
[358792570,1745433038930,-151.0,0.00019726,2]
[358792571,1745433038940,-151.0,0.00019726,2]
[358792572,1745433038950,-151.0,0.00019726,2]
[358792573,1745433038960,-151.0,0.00019726,2]
[358792574,1745433038970,-151.0,0.00019726,2]
[358792575,1745433038979,-151.0,0.00019726,2]
[358792576,1745433038989,-151.0,0.00019726,2]
[358792577,1745433038999,-151.0,0.00019726,2]
[358792578,1745433039009,-212.70290137,0.00019726,2]
[358792579,1745433039018,-198.0,0.00019747,2]
[358792580,1745433039027,-500.0,0.00019747,2]
[358792581,1745433039037,-151.0,0.00019747,2]
[358792582,1745433039047,-151.0,0.00019747,2]
[358792583,1745433039057,-151.0,0.00019747,2]
[358792584,1745433039067,-232.77955801,0.00019747,2]
[358792585,1745433039077,-500.0,0.00019747,2]
[358792586,1745433039086,-151.0,0.00019771,2]
[358792587,1745433039097,-151.820212,0.00019771,2]
[358792588,1745433039106,-151.0,0.00019772,2]
[358792589,1745433039115,-193.135109,0.00019772,2]
[358792590,1745433039125,-151.0,0.00019799,2]
[358792591,1745433039136,-151.0,0.00019799,2]
[358792592,1745433039145,-151.0,0.00019799,2]
[358792593,1745433039155,-4251.7395993,0.000199,2]
[358792594,1745433039164,-151.0,0.00019999,2]
[358792595,1745433039173,-151.0,0.00019999,2]
[358792596,1745433039183,-151.0,0.00019999,2]
[358792597,1745433039192,-151.0,0.00019999,2]
[358792598,1745433039201,-151.0,0.00019999,2]
[358792599,1745433039211,-151.0,0.00019999,2]
[358792600,1745433039221,-151.0,0.0002,2]
[358792601,1745433039230,-151.0,0.0002,2]
[358792602,1745433039240,-151.0,0.0002,2]
[358792603,1745433039250,-151.0,0.0002,2]
[358792604,1745433039259,-151.0,0.0002,2]
[358792605,1745433039268,-208.188436,0.0002,2]
[358792606,1745433039278,-205.349535,0.0002,2]
[358792607,1745433039287,-205.349535,0.0002,2]
[358792608,1745433039297,-205.349535,0.0002,2]
[358792609,1745433039307,-205.349535,0.0002,2]
[358792611,1745433039478,-11305.18318103,0.0002,2]
[358792612,1745433039496,-151.0,0.0002,2]
[358792613,1745433039506,-151.0,0.0002,2]
[358792614,1745433039516,-151.0,0.0002,2]
[358792615,1745433039527,-151.0,0.0002,2]
[358792616,1745433039536,-160.0,0.0002,3]
[358792617,1745433039548,-2193.789003,0.0002,120]
[358792618,1745433039558,-500.0,0.00020021,2]
[358792619,1745433039567,-151.0,0.00020021,2]
[358792620,1745433039577,-151.0,0.00020021,2]
[358792621,1745433039587,-406.01232731,0.00020021,2]
[358792622,1745433039596,-151.0,0.00020111,2]
[358792623,1745433039605,-205.349535,0.00020273,2]
[358792624,1745433039615,-205.349535,0.00020273,2]
[358792625,1745433039624,-205.349535,0.00020273,2]
[358792626,1745433039634,-205.349535,0.00020273,2]
[358792627,1745433039644,-172.688586,0.00020273,2]
[358792628,1745433039654,-245.0,0.00020274,2]
[358792629,1745433039664,-500.0,0.00020295,2]
[358792630,1745433039674,-151.0,0.00020295,2]
[358792631,1745433039683,-151.0,0.00020295,2]
[358792632,1745433039692,-7091.86323105,0.000204,2]
[358792633,1745433039702,-205.349535,0.00020547,2]
[358792634,1745433039711,-205.349535,0.00020547,2]
[358792635,1745433039726,-205.349535,0.00020547,2]
[358792636,1745433039736,-205.349544,0.00020547,2]
[358792637,1745433039746,-151.0,0.00020547,2]
[358792638,1745433039755,-245.0,0.00020569,2]
[358792639,1745433039765,-245.0,0.00020569,2]
[358792640,1745433039774,-180.42243624,0.0002061,2]
[358792641,1745433039784,-151.0,0.00020659,2]
[358792642,1745433039793,-229.8,0.00020681,3]
[358792643,1745433039803,-160.0,0.00020691,2]
[358792644,1745433039813,-160.0,0.00020691,2]
[358792645,1745433039823,-839.95942076,0.00020691,2]
[358792646,1745433039832,-160.0,0.00020691,2]
[358792647,1745433039844,-420.82143104,0.00020691,2]
[358792648,1745433039854,-160.0,0.00020691,2]
[358792649,1745433039863,-160.0,0.00020691,2]
[358792650,1745433039873,-12573.79847128,0.00020691,2]
[358792651,1745433039882,-160.0,0.00020691,2]
[358792652,1745433039891,-160.0,0.00020691,2]
[358792653,1745433039901,-151.0,0.00020693,2]
[358792654,1745433039910,-151.0,0.00020693,2]
[358792655,1745433039920,-151.217405,0.00020693,2]
[358792656,1745433039930,-177.275532,0.00020693,2]
[358792658,1745433039940,-151.0,0.00020693,2]
[358792659,1745433039950,-7091.86323093,0.00020693,2]
[358792660,1745433039959,-151.0,0.00020694,2]
[358792661,1745433039968,-151.0,0.00020694,2]
[358792662,1745433039978,-151.0,0.00020694,2]
[358792663,1745433039987,-151.0,0.00020694,2]
[358792664,1745433039997,-500.0,0.0002072,2]
[358792665,1745433040007,-500.0,0.0002072,2]
[358792666,1745433040016,-500.0,0.0002072,2]
[358792668,1745433040026,-500.0,0.0002072,2]
[358792669,1745433040035,-500.0,0.0002072,2]
[358792670,1745433040045,-500.0,0.00020772,2]
[358792671,1745433040055,-500.0,0.00020772,2]
[358792672,1745433040064,-459.6,0.0002079,3]
[358792673,1745433040074,-689.44,0.0002079,3]
[358792674,1745433040084,-802.1608874,0.00020793,30]
[358792675,1745433040094,-3328.64,0.000208,2]
[358792676,1745433040103,-500.0,0.0002086,2]
[358792677,1745433040112,-500.0,0.0002086,2]
[358792678,1745433040123,-300.0,0.0002086,2]
[358792679,1745433040132,-500.0,0.0002086,2]
[358792680,1745433040142,-500.0,0.0002086,2]
[358792681,1745433040152,-420.0,0.00020896,2]
[358792682,1745433040162,-160.0,0.000209,3]
[358792683,1745433040172,-215.0738,0.00020932,2]
[358792684,1745433040182,-500.0,0.00020973,2]
[358792685,1745433040191,-500.0,0.00020973,2]
[358792686,1745433040200,-500.0,0.00020973,2]
[358792688,1745433040209,-289.8158653,0.0002099,2]
[358792689,1745433040218,-400.0,0.00020997,2]
[358792690,1745433040227,-266.61920571,0.00021,2]
[358792691,1745433040236,-500.0,0.00021,2]
[358792692,1745433040245,-500.0,0.00021,2]
[358792693,1745433040256,-500.0,0.00021,2]
[358792694,1745433040265,-500.0,0.00021,2]
[358792695,1745433040275,-500.0,0.00021,2]
[358792696,1745433040285,-500.0,0.00021,2]
[358792697,1745433040296,-649.13852449,0.00021,2]
[358792698,1745433040305,-1300.0,0.00021,2]
[358792699,1745433040315,-1300.0,0.00021,2]
[358792700,1745433040324,-1300.0,0.00021,2]
[358792701,1745433040335,-1300.0,0.00021,2]
[358792702,1745433040345,-600.0,0.00021,2]
[358792703,1745433040355,-1300.0,0.00021,2]
[358792704,1745433040365,-600.0,0.00021,2]
[358792705,1745433040374,-1300.0,0.00021,2]
[358792706,1745433040384,-600.0,0.00021,2]
[358792707,1745433040394,-1300.0,0.00021,2]
[358792708,1745433040404,-600.0,0.00021,2]
[358792709,1745433040413,-600.0,0.00021,2]
[358792710,1745433040423,-1300.0,0.00021,2]
[358792711,1745433040432,-600.0,0.00021,2]
[358792712,1745433040442,-1300.0,0.00021,2]
[358792713,1745433040451,-600.0,0.00021,2]
[358792714,1745433040462,-1300.0,0.00021,2]
[358792715,1745433040476,-600.0,0.00021,2]
[358792716,1745433040487,-1300.0,0.00021,2]
[358792717,1745433040496,-600.0,0.00021,2]
[358792718,1745433040505,-1300.0,0.00021,2]
[358792719,1745433040517,-600.0,0.00021,2]
[358792720,1745433040527,-1300.0,0.00021,2]
[358792721,1745433040536,-600.0,0.00021,2]
[358792722,1745433040546,-1571.51774151,0.00021,2]
[358792723,1745433040556,-600.0,0.00021,2]
[358792724,1745433040566,-500.0,0.00021,2]
[358792725,1745433040576,-643.33246036,0.00021,2]
[358792726,1745433040586,-500.0,0.00021,2]
[358792727,1745433040596,-500.0,0.00021,2]
[358792728,1745433040606,-500.0,0.00021,2]
[358792729,1745433040615,-500.0,0.00021,2]
[358792730,1745433040625,-500.0,0.00021,2]
[358792731,1745433040635,-902.99629329,0.00021,2]
[358792732,1745433040644,-2200.0,0.00021,2]
[358792733,1745433040654,-2200.0,0.00021,2]
[358792734,1745433040664,-2200.0,0.00021,2]
[358792735,1745433040674,-2200.0,0.00021,2]
[358792736,1745433040684,-2200.0,0.00021,2]
[358792737,1745433040693,-2200.0,0.00021,2]
[358792738,1745433040703,-2200.0,0.00021,2]
[358792739,1745433040716,-2200.0,0.00021,2]
[358792740,1745433040726,-2200.0,0.00021,2]
[358792741,1745433040736,-2200.0,0.00021,2]
[358792742,1745433040745,-2200.0,0.00021,2]
[358792743,1745433040754,-2200.0,0.00021,2]
[358792744,1745433040764,-2200.0,0.00021,2]
[358792745,1745433040774,-3422.91558272,0.00021,2]
[358792746,1745433040783,-3000.0,0.00021,2]
[358792747,1745433040793,-151.0,0.00021,2]
[358792748,1745433040803,-151.0,0.00021,2]
[358792749,1745433040813,-151.0,0.00021,2]
[358792750,1745433040823,-151.0,0.00021,2]
[358792751,1745433040832,-151.0,0.00021,2]
[358792752,1745433040842,-151.0,0.00021,2]
[358792753,1745433040852,-151.0,0.00021,2]
[358792754,1745433040862,-151.0,0.00021,2]
[358792755,1745433040871,-151.0,0.00021,2]
[358792756,1745433040881,-223.248759,0.00021,2]
[358792757,1745433040891,-151.0,0.00021,2]
[358792758,1745433040900,-151.0,0.00021,2]
[358792759,1745433040909,-154.17399,0.00021,2]
[358792760,1745433040919,-151.0,0.00021,2]
[358792761,1745433040929,-151.0,0.00021,2]
[358792762,1745433040940,-159.926926,0.00021,2]
[358792763,1745433040950,-159.926926,0.00021,2]
[358792764,1745433040960,-151.0,0.00021,2]
[358792765,1745433040970,-151.0,0.00021,2]
[358792766,1745433040979,-151.0,0.00021,2]
[358792767,1745433040988,-151.0,0.00021,2]
[358792768,1745433040998,-151.0,0.00021,2]
[358792769,1745433041007,-151.0,0.00021,2]
[358792770,1745433041017,-151.0,0.00021,2]
[358792771,1745433041027,-896.264847,0.00021,2]
[358792772,1745433041036,-157.04,0.00021,2]
[358792773,1745433041046,-896.264847,0.00021,2]
[358792774,1745433041057,-151.0,0.00021,2]
[358792775,1745433041066,-151.0,0.00021,2]
[358792776,1745433041076,-151.0,0.00021,2]
[358792777,1745433041085,-151.0,0.00021,2]
[358792778,1745433041095,-151.0,0.00021,2]
[358792779,1745433041104,-151.0,0.00021,2]
[358792780,1745433041113,-203.372074,0.00021,2]
[358792781,1745433041122,-251.765975,0.00021,2]
[358792782,1745433041131,-203.372074,0.00021,2]
[358792783,1745433041140,-251.765975,0.00021,2]
[358792784,1745433041150,-151.0,0.00021,2]
[358792785,1745433041160,-471.238532,0.00021,2]
[358792786,1745433041169,-471.238532,0.00021,2]
[358792787,1745433041179,-151.0,0.00021,2]
[358792788,1745433041189,-151.0,0.00021,2]
[358792789,1745433041198,-151.0,0.00021,2]
[358792790,1745433041207,-151.0,0.00021,2]
[358792791,1745433041216,-152.081631,0.00021,2]
[358792792,1745433041226,-151.0,0.00021,2]
[358792793,1745433041236,-151.0,0.00021,2]
[358792794,1745433041245,-151.0,0.00021,2]
[358792795,1745433041255,-500.0,0.00021003,2]
[358792796,1745433041265,-3000.0,0.0002101,2]
[358792797,1745433041274,-689.285175,0.0002101,2]
[358792798,1745433041284,-689.285175,0.0002101,2]
[358792799,1745433041293,-151.0,0.0002101,2]
[358792800,1745433041303,-3000.0,0.0002102,2]
[358792801,1745433041313,-3000.0,0.0002103,2]
[358792802,1745433041322,-3000.0,0.0002104,2]
[358792803,1745433041333,-151.0,0.0002104,2]
[358792804,1745433041343,-159.926926,0.0002104,2]
[358792805,1745433041353,-159.926926,0.0002104,2]
[358792806,1745433041362,-3000.0,0.0002105,2]
[358792807,1745433041371,-3000.0,0.0002106,2]
[358792808,1745433041381,-3000.0,0.0002107,2]
[358792809,1745433041391,-151.0,0.0002107,2]
[358792810,1745433041400,-151.0,0.0002107,2]
[358792811,1745433041409,-500.0,0.00021073,2]
[358792812,1745433041420,-500.0,0.00021073,2]
[358792813,1745433041430,-160.77469476,0.00021073,2]
[358792814,1745433041440,-500.0,0.00021073,2]
[358792815,1745433041450,-250.823,0.00021073,2]
[358792816,1745433041459,-166.857,0.00021073,2]
[358792817,1745433041472,-3000.0,0.0002108,2]
[358792818,1745433041483,-151.0,0.00021084,2]
[358792819,1745433041494,-151.0,0.00021084,2]
[358792820,1745433041503,-151.0,0.00021084,2]
[358792821,1745433041515,-243.851714,0.00021084,2]
[358792822,1745433041524,-198.363091,0.00021084,2]
[358792823,1745433041534,-203.372074,0.00021084,2]
[358792824,1745433041544,-251.765975,0.00021084,2]
[358792825,1745433041556,-203.372074,0.00021084,2]
[358792826,1745433041567,-251.765975,0.00021084,2]
[358792827,1745433041578,-151.0,0.00021084,2]
[358792828,1745433041588,-151.0,0.00021084,2]
[358792829,1745433041598,-151.0,0.00021084,2]
[358792830,1745433041607,-151.0,0.00021084,2]
[358792831,1745433041617,-544.0,0.00021085,2]
[358792832,1745433041627,-2246.0,0.00021085,2]
[358792833,1745433041636,-706.0,0.00021085,2]
[358792834,1745433041646,-403.0,0.00021085,2]
[358792835,1745433041656,-403.0,0.00021085,2]
[358792836,1745433041665,-3000.0,0.0002109,2]
[358792837,1745433041675,-151.0,0.0002109,2]
[358792838,1745433041686,-151.0,0.0002109,2]
[358792839,1745433041695,-151.0,0.0002109,2]
[358792840,1745433041705,-896.264847,0.0002109,2]
[358792841,1745433041715,-896.264847,0.0002109,2]
[358792842,1745433041724,-151.0,0.0002109,2]
[358792843,1745433041734,-151.0,0.0002109,2]
[358792844,1745433041744,-151.0,0.0002109,2]
[358792845,1745433041754,-471.238532,0.0002109,2]
[358792846,1745433041763,-471.238532,0.0002109,2]
[358792847,1745433041773,-151.0,0.00021096,2]
[358792848,1745433041783,-3000.0,0.000211,2]
[358792849,1745433041791,-151.0,0.000211,2]
[358792850,1745433041802,-151.315,0.000211,2]
[358792851,1745433041812,-213.046,0.000211,2]
[358792852,1745433041821,-3000.0,0.0002111,2]
[358792853,1745433041831,-151.0,0.0002111,2]
[358792854,1745433041840,-151.0,0.0002111,2]
[358792855,1745433041849,-151.0,0.0002111,2]
[358792856,1745433041859,-3000.0,0.0002112,2]
[358792857,1745433041869,-3000.0,0.0002113,2]
[358792858,1745433041878,-151.0,0.0002113,2]
[358792859,1745433041888,-689.285175,0.0002113,2]
[358792860,1745433041900,-689.285175,0.0002113,2]
[358792861,1745433041910,-3000.0,0.0002114,2]
[358792862,1745433041920,-151.0,0.0002114,2]
[358792863,1745433041930,-3000.0,0.0002115,2]
[358792864,1745433041939,-3000.0,0.0002116,2]
[358792865,1745433041948,-3000.0,0.0002117,2]
[358792866,1745433041958,-3000.0,0.0002118,2]
[358792867,1745433041968,-3000.0,0.0002119,2]
[358792868,1745433041977,-151.0,0.0002119,2]
[358792869,1745433041987,-151.0,0.0002119,2]
[358792870,1745433041996,-3000.0,0.000212,2]
[358792871,1745433042007,-159.926926,0.000212,2]
[358792872,1745433042016,-159.926926,0.000212,2]
[358792873,1745433042025,-151.0,0.00021207,2]
[358792874,1745433042034,-3000.0,0.0002121,2]
[358792875,1745433042190,-3000.0,0.0002122,2]
[358792877,1745433042200,-3000.0,0.0002123,2]
[358792878,1745433042210,-3000.0,0.0002124,2]
[358792879,1745433042219,-3000.0,0.0002125,2]
[358792880,1745433042229,-151.0,0.0002125,2]
[358792882,1745433042239,-151.0,0.0002125,2]
[358792884,1745433042249,-151.0,0.0002125,2]
[358792886,1745433042258,-157.729517,0.0002125,2]
[358792887,1745433042267,-151.0,0.0002125,2]
[358792888,1745433042277,-203.372074,0.0002125,2]
[358792889,1745433042286,-203.372074,0.0002125,2]
[358792890,1745433042295,-151.0,0.0002125,2]
[358792892,1745433042305,-151.0,0.0002125,2]
[358792893,1745433042314,-3000.0,0.0002126,2]
[358792894,1745433042323,-151.0,0.0002126,2]
[358792895,1745433042333,-151.0,0.0002126,2]
[358792896,1745433042343,-151.0,0.0002126,2]
[358792897,1745433042352,-896.264847,0.0002126,2]
[358792898,1745433042361,-896.264847,0.0002126,2]
[358792899,1745433042371,-151.0,0.0002126,2]
[358792900,1745433042380,-251.765975,0.0002126,2]
[358792901,1745433042389,-251.765975,0.0002126,2]
[358792902,1745433042398,-151.0,0.0002126,2]
[358792903,1745433042408,-299.512536,0.0002126,2]
[358792905,1745433042418,-3000.0,0.0002127,2]
[358792907,1745433042428,-151.0,0.0002127,2]
[358792908,1745433042437,-151.0,0.0002127,2]
[358792909,1745433042450,-471.238532,0.0002127,2]
[358792910,1745433042459,-471.238532,0.0002127,2]
[358792911,1745433042469,-151.0,0.0002127,2]
[358792912,1745433042482,-5003.846537,0.0002128,2]
[358792913,1745433042491,-201.974146,0.0002128,2]
[358792914,1745433042500,-185.697788,0.0002128,2]
[358792915,1745433042509,-151.0,0.00021369,2]
[358792916,1745433042519,-151.0,0.00021369,2]
[358792917,1745433042528,-178.327036,0.00021486,2]
[358792918,1745433042537,-689.285175,0.00021486,2]
[358792920,1745433042547,-689.285175,0.00021486,2]
[358792922,1745433042557,-151.0,0.00021486,2]
[358792924,1745433042566,-7091.86323093,0.00021486,3]
[358792925,1745433042575,-500.0,0.00021673,2]
[358792926,1745433042584,-151.60294825,0.00021673,2]
[358792927,1745433042594,-107891.32735457,0.00021698,2]
[358792928,1745433042603,-151.268531,0.00021698,2]
[358792929,1745433042613,-151.0,0.00021698,2]
[358792930,1745433042622,-151.0,0.00021698,2]
[358792931,1745433042631,-151.0,0.00021698,2]
[358792932,1745433042641,-159.926926,0.00021698,2]
[358792933,1745433042651,-159.926926,0.00021698,2]
[358792934,1745433042660,-151.0,0.00021698,2]